[Event "GrandPrix_30.05"]
[Site "Chess.com"]
[Date "2020.05.30"]
[Round "4"]
[White "N4700000"]
[Black "Olga_Girya"]
[Result "0-1"]
[WhiteElo "2251"]
[BlackElo "2274"]
[TimeControl "600+2"]
[EndTime "9:50:24 PDT"]
[Termination "Olga_Girya won by resignation"]

1. e4 {[%clk 0:08:31.1]} 1... c6 {[%clk 0:09:59]} 2. Nc3 {[%clk 0:08:29.5]} 2...
d5 {[%clk 0:09:59.5]} 3. Qe2 {[%clk 0:08:31.1]} 3... d4 {[%clk 0:09:50.7]} 4.
Nd1 {[%clk 0:08:31.6]} 4... e5 {[%clk 0:09:50.4]} 5. g3 {[%clk 0:08:31.4]} 5...
Nf6 {[%clk 0:09:43]} 6. Bg2 {[%clk 0:08:30.5]} 6... Be6 {[%clk 0:07:47.1]} 7. f4
{[%clk 0:08:22.6]} 7... d3 {[%clk 0:06:33]} 8. cxd3 {[%clk 0:08:11.5]} 8... Na6
{[%clk 0:06:33.3]} 9. f5 {[%clk 0:07:18.8]} 9... Bxa2 {[%clk 0:06:33]} 10. Rxa2
{[%clk 0:07:05.6]} 10... Nb4 {[%clk 0:06:33.6]} 11. Ra3 {[%clk 0:06:55.1]} 11...
Nc2+ {[%clk 0:06:31.4]} 12. Kf1 {[%clk 0:06:52.4]} 12... Bxa3 {[%clk 0:06:14.6]}
13. bxa3 {[%clk 0:06:54.3]} 13... Nd4 {[%clk 0:06:13.7]} 14. Qe1 {[%clk
0:06:24.4]} 14... Nc2 {[%clk 0:05:17.9]} 15. Qf2 {[%clk 0:06:21]} 15... Qxd3+
{[%clk 0:05:12.4]} 16. Qe2 {[%clk 0:06:16.4]} 16... O-O-O {[%clk 0:04:55.3]} 17.
Qxd3 {[%clk 0:06:01.7]} 17... Rxd3 {[%clk 0:04:55.5]} 18. Nc3 {[%clk 0:05:43.1]}
18... Nd4 {[%clk 0:04:05.8]} 19. Nge2 {[%clk 0:05:26.9]} 19... Nb3 {[%clk
0:04:00.1]} 20. Ke1 {[%clk 0:04:58]} 20... Rhd8 {[%clk 0:03:57.9]} 21. Nb1
{[%clk 0:04:52.3]} 21... a5 {[%clk 0:02:36.2]} 22. Rf1 {[%clk 0:04:36.8]} 22...
c5 {[%clk 0:02:20.1]} 23. Bb2 {[%clk 0:04:11]} 23... Nxd2 {[%clk 0:02:12.6]} 24.
Nxd2 {[%clk 0:04:09.9]} 24... Rxd2 {[%clk 0:02:13.1]} 25. Bc3 {[%clk 0:03:59.3]}
25... Rd1+ {[%clk 0:02:12.3]} 26. Kf2 {[%clk 0:03:59.4]} 26... Ng4+ {[%clk
0:02:08]} 27. Kg1 {[%clk 0:03:56.7]} 27... Rxf1+ {[%clk 0:02:04.6]} 28. Bxf1
{[%clk 0:03:53.5]} 28... Rd1 {[%clk 0:02:01.9]} 29. Bxa5 {[%clk 0:02:58.7]}
29... Ne3 {[%clk 0:02:02.1]} 30. Kf2 {[%clk 0:02:58.9]} 30... Nxf1 {[%clk
0:02:02.9]} 31. Nc3 {[%clk 0:02:47]} 31... Ra1 {[%clk 0:02:02.5]} 32. Nb5 {[%clk
0:02:41.6]} 32... Nxh2 {[%clk 0:02:01.7]} 33. Nd6+ {[%clk 0:02:40.7]} 33... Kd7
{[%clk 0:01:57.3]} 34. Nxf7 {[%clk 0:02:41.6]} 34... Ng4+ {[%clk 0:01:44.5]} 35.
Kf3 {[%clk 0:02:39.6]} 35... h5 {[%clk 0:01:43]} 0-1

[Event "GrandPrix_30.05"]
[Site "Chess.com"]
[Date "2020.05.30"]
[Round "4"]
[White "MasterSonnevanck2"]
[Black "KruHor"]
[Result "0-1"]
[WhiteElo "2150"]
[BlackElo "2446"]
[TimeControl "600+2"]
[EndTime "9:50:31 PDT"]
[Termination "KruHor won by resignation"]

1. d4 {[%clk 0:10:01.9]} 1... Nf6 {[%clk 0:10:00]} 2. c4 {[%clk 0:10:01.9]} 2...
e6 {[%clk 0:10:00.5]} 3. Nc3 {[%clk 0:10:02.4]} 3... Bb4 {[%clk 0:10:00.5]} 4.
f3 {[%clk 0:10:02.1]} 4... c5 {[%clk 0:09:58]} 5. d5 {[%clk 0:10:02.9]} 5... O-O
{[%clk 0:09:58.1]} 6. e4 {[%clk 0:10:02.5]} 6... d6 {[%clk 0:09:58.5]} 7. Ne2
{[%clk 0:09:57.6]} 7... b5 {[%clk 0:09:54.1]} 8. Ng3 {[%clk 0:09:48.6]} 8...
bxc4 {[%clk 0:09:51.2]} 9. Bxc4 {[%clk 0:09:47.4]} 9... Bxc3+ {[%clk 0:09:44.3]}
10. bxc3 {[%clk 0:09:46.8]} 10... Qa5 {[%clk 0:09:44.6]} 11. Ne2 {[%clk
0:08:12.9]} 11... Ba6 {[%clk 0:08:47]} 12. Bxa6 {[%clk 0:08:01]} 12... Qxa6
{[%clk 0:08:47.6]} 13. O-O {[%clk 0:07:50.7]} 13... exd5 {[%clk 0:08:47.4]} 14.
Bg5 {[%clk 0:07:02.7]} 14... Nbd7 {[%clk 0:08:46.7]} 15. exd5 {[%clk 0:06:56.8]}
15... Rfe8 {[%clk 0:08:25.4]} 16. Ng3 {[%clk 0:06:37.2]} 16... Re5 {[%clk
0:07:27.3]} 17. Bxf6 {[%clk 0:06:00.5]} 17... Nxf6 {[%clk 0:07:25.7]} 18. Ne4
{[%clk 0:05:59.8]} 18... Nxe4 {[%clk 0:06:28.7]} 19. fxe4 {[%clk 0:05:57.1]}
19... Rae8 {[%clk 0:06:20.8]} 20. Qf3 {[%clk 0:05:43.3]} 20... f6 {[%clk
0:06:02.3]} 21. Rab1 {[%clk 0:05:40.5]} 21... Rxe4 {[%clk 0:05:33.9]} 22. Qg3
{[%clk 0:05:21.5]} 22... Kh8 {[%clk 0:05:23.1]} 23. h3 {[%clk 0:05:09.2]} 23...
R4e5 {[%clk 0:05:12.3]} 24. c4 {[%clk 0:04:12.9]} 24... Qxa2 {[%clk 0:04:44.8]}
25. Rb7 {[%clk 0:03:58.3]} 25... Rg5 {[%clk 0:04:33.8]} 26. Qf3 {[%clk 0:03:59]}
26... Qxc4 {[%clk 0:04:27.9]} 27. Rfb1 {[%clk 0:03:31.6]} 27... h6 {[%clk
0:03:28.5]} 28. Rf7 {[%clk 0:02:50.8]} 28... Qxd5 {[%clk 0:03:17.3]} 29. Qxd5
{[%clk 0:02:48.8]} 29... Rxd5 {[%clk 0:03:17.5]} 30. Rbb7 {[%clk 0:02:46.9]}
30... Rg5 {[%clk 0:03:13.1]} 31. Kf2 {[%clk 0:02:41]} 31... a5 {[%clk
0:03:07.2]} 32. Rfd7 {[%clk 0:02:38.4]} 32... Ra8 {[%clk 0:02:44.6]} 33. Rxd6
{[%clk 0:02:38.9]} 33... a4 {[%clk 0:02:43]} 34. Rd2 {[%clk 0:02:39.4]} 34... a3
{[%clk 0:02:38.8]} 35. Ra2 {[%clk 0:02:40.1]} 35... c4 {[%clk 0:02:34.9]} 36.
Rc7 {[%clk 0:02:34.3]} 36... Ra4 {[%clk 0:02:34.7]} 37. Kf3 {[%clk 0:02:25.5]}
37... Rb5 {[%clk 0:02:33.3]} 38. Ke4 {[%clk 0:02:20.9]} 38... Rb2 {[%clk
0:02:29.9]} 39. Ra1 {[%clk 0:02:12.5]} 39... a2 {[%clk 0:02:25.5]} 40. Kf5
{[%clk 0:02:07.5]} 40... Kh7 {[%clk 0:02:16.2]} 0-1

[Event "GrandPrix_30.05"]
[Site "Chess.com"]
[Date "2020.05.30"]
[Round "4"]
[White "2346PL"]
[Black "titan013"]
[Result "1/2-1/2"]
[WhiteElo "2064"]
[BlackElo "2179"]
[TimeControl "600+2"]
[EndTime "9:50:33 PDT"]
[Termination "Game drawn by repetition"]

1. d4 {[%clk 0:10:01.9]} 1... d5 {[%clk 0:10:00.6]} 2. Nf3 {[%clk 0:10:02.3]}
2... Nf6 {[%clk 0:10:01.1]} 3. c3 {[%clk 0:10:03.7]} 3... Bg4 {[%clk 0:10:00.9]}
4. Qb3 {[%clk 0:10:00.1]} 4... Qc8 {[%clk 0:10:00.8]} 5. Ne5 {[%clk 0:09:57]}
5... Bf5 {[%clk 0:10:01.5]} 6. e3 {[%clk 0:09:57.9]} 6... e6 {[%clk 0:10:02.4]}
7. c4 {[%clk 0:09:58.8]} 7... Bd6 {[%clk 0:10:01.5]} 8. Nc3 {[%clk 0:09:56.6]}
8... O-O {[%clk 0:09:59.9]} 9. cxd5 {[%clk 0:09:49.6]} 9... exd5 {[%clk
0:09:50.2]} 10. Nxd5 {[%clk 0:09:31.7]} 10... Nxd5 {[%clk 0:09:19.9]} 11. Qxd5
{[%clk 0:09:33.6]} 11... Bb4+ {[%clk 0:09:21]} 12. Bd2 {[%clk 0:09:30.9]} 12...
Be6 {[%clk 0:09:19.3]} 13. Qb5 {[%clk 0:09:15.1]} 13... Bxd2+ {[%clk 0:09:18.6]}
14. Kxd2 {[%clk 0:09:16.4]} 14... c6 {[%clk 0:09:18.6]} 15. Qb4 {[%clk
0:09:00.2]} 15... Nd7 {[%clk 0:09:18]} 16. Nxd7 {[%clk 0:08:56.5]} 16... Qxd7
{[%clk 0:09:18.7]} 17. Bd3 {[%clk 0:08:40.2]} 17... b6 {[%clk 0:09:18.9]} 18.
Ke2 {[%clk 0:08:15.1]} 18... Rad8 {[%clk 0:09:06.3]} 19. Rhd1 {[%clk 0:08:03.8]}
19... Bd5 {[%clk 0:08:50]} 20. f3 {[%clk 0:07:30.3]} 20... Qc7 {[%clk
0:08:49.1]} 21. g3 {[%clk 0:07:18.8]} 21... Qd7 {[%clk 0:08:45.6]} 22. Kf2
{[%clk 0:06:19.2]} 22... Qh3 {[%clk 0:08:41.2]} 23. Rh1 {[%clk 0:06:19.5]} 23...
c5 {[%clk 0:08:39]} 24. Qd2 {[%clk 0:05:11.4]} 24... cxd4 {[%clk 0:08:31.9]} 25.
exd4 {[%clk 0:04:55]} 25... Rd6 {[%clk 0:08:30.2]} 26. Qg5 {[%clk 0:04:08.5]}
26... g6 {[%clk 0:08:22.6]} 27. Rae1 {[%clk 0:03:19.5]} 27... Bxa2 {[%clk
0:08:18.1]} 28. Re4 {[%clk 0:03:11.1]} 28... Qd7 {[%clk 0:08:01.9]} 29. Bb5
{[%clk 0:02:53.3]} 29... Qb7 {[%clk 0:07:48.4]} 30. Re7 {[%clk 0:02:07.7]} 30...
Qb8 {[%clk 0:07:44.4]} 31. Qe3 {[%clk 0:01:50.1]} 31... a5 {[%clk 0:07:33.2]}
32. b3 {[%clk 0:01:40.8]} 32... Qd8 {[%clk 0:07:22.5]} 33. Re4 {[%clk
0:01:30.2]} 33... a4 {[%clk 0:06:31]} 34. Bxa4 {[%clk 0:01:31]} 34... Rd5 {[%clk
0:05:55.2]} 35. Ra1 {[%clk 0:01:23.9]} 35... b5 {[%clk 0:05:56]} 36. Rxa2 {[%clk
0:01:24.8]} 36... bxa4 {[%clk 0:05:57.2]} 37. bxa4 {[%clk 0:01:24.9]} 37... Qa5
{[%clk 0:05:55.6]} 38. Re5 {[%clk 0:01:14.5]} 38... Rfd8 {[%clk 0:05:54.5]} 39.
Rxd5 {[%clk 0:01:07]} 39... Rxd5 {[%clk 0:05:51.8]} 40. h4 {[%clk 0:01:01.4]}
40... Kg7 {[%clk 0:05:52.4]} 41. g4 {[%clk 0:01:00.7]} 41... Qc7 {[%clk
0:05:49.3]} 42. Kg2 {[%clk 0:00:58.6]} 42... h5 {[%clk 0:05:43.6]} 43. a5 {[%clk
0:00:55.2]} 43... hxg4 {[%clk 0:05:43.2]} 44. fxg4 {[%clk 0:00:54.3]} 44... Qd7
{[%clk 0:05:28.9]} 45. Kh3 {[%clk 0:00:32]} 45... Rxd4 {[%clk 0:05:23.4]} 46.
Qe5+ {[%clk 0:00:16.9]} 46... Kh7 {[%clk 0:05:23.7]} 47. Qe2 {[%clk 0:00:16.6]}
47... f5 {[%clk 0:05:17.4]} 48. a6 {[%clk 0:00:13.7]} 48... fxg4+ {[%clk
0:05:13.9]} 49. Kg2 {[%clk 0:00:14.3]} 49... Qd5+ {[%clk 0:05:13.8]} 50. Kh2
{[%clk 0:00:14.2]} 50... Rd3 {[%clk 0:05:06.3]} 51. Qe7+ {[%clk 0:00:13.7]}
51... Kg8 {[%clk 0:05:06.8]} 52. Qe8+ {[%clk 0:00:14.3]} 52... Kg7 {[%clk
0:05:08]} 53. Qe7+ {[%clk 0:00:15.4]} 53... Kg8 {[%clk 0:05:08.9]} 54. Qe8+
{[%clk 0:00:16.7]} 54... Kg7 {[%clk 0:05:09.8]} 55. Qe7+ {[%clk 0:00:18.1]}
55... Kg8 {[%clk 0:05:05.6]} 1/2-1/2

[Event "GrandPrix_30.05"]
[Site "Chess.com"]
[Date "2020.05.30"]
[Round "4"]
[White "Hakob-Hakobyan-Arm"]
[Black "Rakhmanov_Aleksandr"]
[Result "0-1"]
[WhiteElo "2155"]
[BlackElo "2452"]
[TimeControl "600+2"]
[EndTime "9:50:39 PDT"]
[Termination "Rakhmanov_Aleksandr won by resignation"]

1. Nf3 {[%clk 0:10:01.9]} 1... d5 {[%clk 0:09:58.5]} 2. g3 {[%clk 0:10:02.8]}
2... g6 {[%clk 0:09:55.7]} 3. Bg2 {[%clk 0:10:03.7]} 3... Bg7 {[%clk 0:09:57.3]}
4. d4 {[%clk 0:10:05.3]} 4... Nf6 {[%clk 0:09:58.3]} 5. O-O {[%clk 0:10:06.9]}
5... O-O {[%clk 0:09:59.8]} 6. c4 {[%clk 0:10:08.5]} 6... c6 {[%clk 0:10:01.4]}
7. cxd5 {[%clk 0:10:09.5]} 7... cxd5 {[%clk 0:10:03.3]} 8. Nc3 {[%clk 0:10:11]}
8... Nc6 {[%clk 0:10:03.8]} 9. Ne5 {[%clk 0:10:12.3]} 9... Bd7 {[%clk
0:09:54.6]} 10. Nxd7 {[%clk 0:10:12.4]} 10... Qxd7 {[%clk 0:09:53.9]} 11. Na4
{[%clk 0:09:57.6]} 11... b6 {[%clk 0:09:50.5]} 12. b3 {[%clk 0:09:59.1]} 12...
Rfc8 {[%clk 0:09:22.7]} 13. Bb2 {[%clk 0:09:52.5]} 13... e6 {[%clk 0:09:19.5]}
14. e3 {[%clk 0:09:47.1]} 14... Nb4 {[%clk 0:09:19.5]} 15. a3 {[%clk 0:09:37.2]}
15... Nc6 {[%clk 0:09:13.3]} 16. Qe2 {[%clk 0:09:35.1]} 16... Na5 {[%clk
0:09:13.6]} 17. Qd3 {[%clk 0:09:25.6]} 17... Ne4 {[%clk 0:09:02.9]} 18. Rfc1
{[%clk 0:09:13.3]} 18... Nd6 {[%clk 0:08:52.4]} 19. Bf1 {[%clk 0:08:44.5]} 19...
Rxc1 {[%clk 0:08:07.4]} 20. Rxc1 {[%clk 0:08:44.4]} 20... Rc8 {[%clk 0:08:09.3]}
21. Rc2 {[%clk 0:08:10.7]} 21... Rxc2 {[%clk 0:07:43.4]} 22. Qxc2 {[%clk
0:08:12.6]} 22... Qc8 {[%clk 0:07:44.5]} 23. Qxc8+ {[%clk 0:07:37.7]} 23... Nxc8
{[%clk 0:07:46.4]} 24. b4 {[%clk 0:07:39.6]} 24... Nc4 {[%clk 0:07:43.2]} 25.
Bxc4 {[%clk 0:07:35.9]} 25... dxc4 {[%clk 0:07:45.1]} 26. Nc3 {[%clk 0:06:48.3]}
26... Nd6 {[%clk 0:07:38.7]} 27. b5 {[%clk 0:06:46.5]} 27... e5 {[%clk
0:07:36.6]} 28. d5 {[%clk 0:06:06.6]} 28... e4 {[%clk 0:07:24.8]} 29. a4 {[%clk
0:06:08]} 29... Nb7 {[%clk 0:07:11.6]} 30. Kf1 {[%clk 0:05:58.4]} 30... Nc5
{[%clk 0:07:01]} 31. Ke2 {[%clk 0:05:49.4]} 31... Nd3 {[%clk 0:06:52.9]} 32. Ba1
{[%clk 0:05:50.5]} 32... Kf8 {[%clk 0:06:36.2]} 33. f3 {[%clk 0:05:32.6]} 33...
f5 {[%clk 0:06:31.7]} 34. fxe4 {[%clk 0:05:22.9]} 34... fxe4 {[%clk 0:06:31.4]}
35. Kd2 {[%clk 0:04:44]} 35... Ke7 {[%clk 0:06:23.8]} 36. Kc2 {[%clk 0:04:45.2]}
36... h5 {[%clk 0:06:01.3]} 37. Kb1 {[%clk 0:04:23.9]} 37... Bxc3 {[%clk
0:05:49.7]} 38. Bxc3 {[%clk 0:04:25.8]} 38... Kd6 {[%clk 0:05:47.3]} 39. a5
{[%clk 0:03:52.4]} 39... bxa5 {[%clk 0:05:26.4]} 40. Bd4 {[%clk 0:03:24.3]}
40... Kxd5 {[%clk 0:05:15.1]} 41. Bxa7 {[%clk 0:03:24.9]} 41... Nc5 {[%clk
0:04:28.5]} 42. Kc2 {[%clk 0:03:09.4]} 42... a4 {[%clk 0:04:24.7]} 43. Kb2
{[%clk 0:02:54.3]} 43... Nd3+ {[%clk 0:04:22.5]} 44. Kc2 {[%clk 0:02:47.2]}
44... a3 {[%clk 0:04:20]} 45. Bd4 {[%clk 0:02:48]} 45... a2 {[%clk 0:04:11.4]}
46. b6 {[%clk 0:02:48.7]} 46... Kc6 {[%clk 0:04:05.4]} 47. h4 {[%clk 0:02:28.5]}
47... Nb4+ {[%clk 0:03:21.6]} 48. Kb2 {[%clk 0:02:29.7]} 48... a1=Q+ {[%clk
0:03:19.9]} 49. Kxa1 {[%clk 0:02:30.3]} 49... Nc2+ {[%clk 0:03:21]} 50. Kb2
{[%clk 0:02:31.9]} 50... Nxd4 {[%clk 0:03:22.2]} 51. exd4 {[%clk 0:02:31.2]}
51... e3 {[%clk 0:03:19.4]} 52. Kc2 {[%clk 0:01:55.2]} 52... Kxb6 {[%clk
0:03:18.6]} 53. Kd1 {[%clk 0:01:54.7]} 53... c3 {[%clk 0:03:17.9]} 0-1

[Event "GrandPrix_30.05"]
[Site "Chess.com"]
[Date "2020.05.30"]
[Round "4"]
[White "ArnaudovP"]
[Black "EvgenyRomanov"]
[Result "0-1"]
[WhiteElo "2214"]
[BlackElo "2169"]
[TimeControl "600+2"]
[EndTime "9:50:45 PDT"]
[Termination "EvgenyRomanov won by resignation"]

1. Nf3 {[%clk 0:10:01.9]} 1... Nf6 {[%clk 0:09:56.4]} 2. c4 {[%clk 0:10:02.4]}
2... b6 {[%clk 0:09:57.3]} 3. g3 {[%clk 0:10:02.1]} 3... Bb7 {[%clk 0:09:58.2]}
4. Bg2 {[%clk 0:10:03.3]} 4... g6 {[%clk 0:09:59.4]} 5. d4 {[%clk 0:10:03.4]}
5... Bg7 {[%clk 0:09:56.4]} 6. O-O {[%clk 0:09:58.7]} 6... O-O {[%clk
0:09:56.9]} 7. d5 {[%clk 0:09:56.2]} 7... Na6 {[%clk 0:09:56.3]} 8. Nc3 {[%clk
0:09:56.7]} 8... Nc5 {[%clk 0:09:56.9]} 9. Qc2 {[%clk 0:09:50.5]} 9... e6 {[%clk
0:09:49.4]} 10. e4 {[%clk 0:09:49.3]} 10... exd5 {[%clk 0:09:48.6]} 11. exd5
{[%clk 0:09:43.7]} 11... c6 {[%clk 0:09:38.1]} 12. d6 {[%clk 0:09:28]} 12... a5
{[%clk 0:09:25]} 13. Bg5 {[%clk 0:09:15.5]} 13... Ba6 {[%clk 0:09:20.4]} 14. b3
{[%clk 0:09:11.5]} 14... h6 {[%clk 0:09:17.3]} 15. Be3 {[%clk 0:09:04.8]} 15...
Qb8 {[%clk 0:07:27.3]} 16. Rad1 {[%clk 0:08:48.9]} 16... Re8 {[%clk 0:07:08.6]}
17. Bxc5 {[%clk 0:08:27.2]} 17... bxc5 {[%clk 0:07:10.5]} 18. Na4 {[%clk
0:08:28.2]} 18... Qb4 {[%clk 0:06:37.9]} 19. Ne1 {[%clk 0:08:24.6]} 19... Re6
{[%clk 0:04:57.6]} 20. Nd3 {[%clk 0:08:24]} 20... Qb8 {[%clk 0:04:56.6]} 21.
Ndxc5 {[%clk 0:08:24.2]} 21... Rxd6 {[%clk 0:04:55.4]} 22. Rxd6 {[%clk
0:08:14.9]} 22... Qxd6 {[%clk 0:04:57.3]} 23. Rd1 {[%clk 0:08:14.9]} 23... Qe7
{[%clk 0:04:31.3]} 24. Qd2 {[%clk 0:08:10]} 24... Bc8 {[%clk 0:03:18.8]} 25. Qe3
{[%clk 0:08:06.9]} 25... Qxe3 {[%clk 0:03:09.9]} 26. fxe3 {[%clk 0:08:06.8]}
26... Rb8 {[%clk 0:02:46.4]} 27. Bh3 {[%clk 0:08:02.2]} 27... d5 {[%clk
0:02:27.8]} 28. Bg2 {[%clk 0:07:24]} 28... Bg4 {[%clk 0:02:26.3]} 29. Rc1 {[%clk
0:07:19.9]} 29... h5 {[%clk 0:02:19.4]} 30. h3 {[%clk 0:07:20.2]} 30... Bf5
{[%clk 0:02:18.2]} 31. cxd5 {[%clk 0:07:10.6]} 31... cxd5 {[%clk 0:02:18.7]} 32.
Na6 {[%clk 0:06:55.1]} 32... Re8 {[%clk 0:02:15.3]} 33. Nc7 {[%clk 0:06:53.9]}
33... Rxe3 {[%clk 0:02:13.5]} 34. Kf2 {[%clk 0:06:49.4]} 34... Re7 {[%clk
0:01:55.2]} 35. Nxd5 {[%clk 0:06:37.1]} 35... Nxd5 {[%clk 0:01:54.2]} 36. Bxd5
{[%clk 0:06:37.6]} 36... Bd4+ {[%clk 0:01:55.8]} 37. Kf3 {[%clk 0:06:22.2]}
37... Re3+ {[%clk 0:01:45.9]} 38. Kf4 {[%clk 0:06:22.6]} 38... Re2 {[%clk
0:01:42.8]} 39. Rc4 {[%clk 0:06:01.3]} 39... Be5+ {[%clk 0:00:50.4]} 40. Kf3
{[%clk 0:05:58.1]} 40... Rh2 {[%clk 0:00:45.6]} 41. Nc3 {[%clk 0:05:22.7]} 41...
Bxh3 {[%clk 0:00:44]} 42. Ne4 {[%clk 0:05:11.1]} 42... Bg4+ {[%clk 0:00:30]} 43.
Ke3 {[%clk 0:05:11]} 43... Rxa2 {[%clk 0:00:28]} 44. Rc5 {[%clk 0:05:04.6]}
44... Kg7 {[%clk 0:00:24]} 45. Rb5 {[%clk 0:05:04]} 45... Bb2 {[%clk 0:00:19.9]}
46. Rb7 {[%clk 0:04:59.7]} 46... Bc1+ {[%clk 0:00:20.8]} 47. Kd4 {[%clk
0:04:58.5]} 47... Bf5 {[%clk 0:00:19.9]} 48. Rxf7+ {[%clk 0:04:56.7]} 48... Kh6
{[%clk 0:00:21.2]} 49. Rc7 {[%clk 0:04:47.3]} 49... Bb2+ {[%clk 0:00:21.1]} 50.
Ke3 {[%clk 0:04:46]} 50... Be5 {[%clk 0:00:20]} 51. Bg8 {[%clk 0:04:35.8]} 51...
Bxc7 {[%clk 0:00:18.9]} 0-1

[Event "GrandPrix_30.05"]
[Site "Chess.com"]
[Date "2020.05.30"]
[Round "4"]
[White "ZefirKa"]
[Black "swisspower96"]
[Result "1-0"]
[WhiteElo "2131"]
[BlackElo "2295"]
[TimeControl "600+2"]
[EndTime "9:50:58 PDT"]
[Termination "ZefirKa won by resignation"]

1. e4 {[%clk 0:10:01.9]} 1... c5 {[%clk 0:09:32.4]} 2. Nf3 {[%clk 0:10:02]} 2...
Nc6 {[%clk 0:09:32.1]} 3. d4 {[%clk 0:09:59.2]} 3... cxd4 {[%clk 0:09:32.9]} 4.
Nxd4 {[%clk 0:10:01.1]} 4... Nf6 {[%clk 0:09:34.5]} 5. Nc3 {[%clk 0:10:02]} 5...
e5 {[%clk 0:09:35.3]} 6. Ndb5 {[%clk 0:10:03]} 6... d6 {[%clk 0:09:36.3]} 7. Bg5
{[%clk 0:10:03.3]} 7... a6 {[%clk 0:09:37.1]} 8. Na3 {[%clk 0:10:04.5]} 8... b5
{[%clk 0:09:38.3]} 9. Nd5 {[%clk 0:10:05.4]} 9... Be7 {[%clk 0:09:39.2]} 10.
Bxf6 {[%clk 0:10:06.9]} 10... Bxf6 {[%clk 0:09:40.5]} 11. c3 {[%clk 0:10:08.5]}
11... Rb8 {[%clk 0:09:34.2]} 12. Nc2 {[%clk 0:10:09]} 12... Bg5 {[%clk
0:09:34.9]} 13. a3 {[%clk 0:10:05.7]} 13... O-O {[%clk 0:09:24.7]} 14. Ncb4
{[%clk 0:10:06.6]} 14... Na7 {[%clk 0:08:23.3]} 15. Be2 {[%clk 0:09:47.2]} 15...
a5 {[%clk 0:08:12.8]} 16. Nc2 {[%clk 0:09:45.6]} 16... g6 {[%clk 0:07:49.1]} 17.
O-O {[%clk 0:09:35.7]} 17... Bh6 {[%clk 0:07:31]} 18. b4 {[%clk 0:09:15.6]}
18... f5 {[%clk 0:06:58.3]} 19. exf5 {[%clk 0:09:02.5]} 19... Bxf5 {[%clk
0:06:28.5]} 20. bxa5 {[%clk 0:08:47.6]} 20... Nc6 {[%clk 0:06:18.1]} 21. a6
{[%clk 0:08:41.5]} 21... Na5 {[%clk 0:05:41.6]} 22. Ncb4 {[%clk 0:07:58]} 22...
Bd7 {[%clk 0:04:40]} 23. Bg4 {[%clk 0:07:37.7]} 23... Be8 {[%clk 0:04:34.7]} 24.
Be6+ {[%clk 0:07:29.8]} 24... Kh8 {[%clk 0:04:34.4]} 25. Ra2 {[%clk 0:07:00.1]}
25... Ra8 {[%clk 0:04:26.9]} 26. Ne3 {[%clk 0:06:00.8]} 26... Qb6 {[%clk
0:04:15.5]} 27. Re2 {[%clk 0:05:47.6]} 27... Qc5 {[%clk 0:04:03.6]} 28. Qd3
{[%clk 0:05:35.5]} 28... Ra7 {[%clk 0:01:50.6]} 29. Rd1 {[%clk 0:05:35.8]} 29...
Rf6 {[%clk 0:01:27.6]} 30. Qxd6 {[%clk 0:04:39.8]} 30... Qxd6 {[%clk 0:01:24.6]}
31. Rxd6 {[%clk 0:04:41.7]} 31... Re7 {[%clk 0:01:21.6]} 32. Ng4 {[%clk
0:04:14.2]} 32... Rfxe6 {[%clk 0:01:10.9]} 33. Rxe6 {[%clk 0:04:15.9]} 33...
Rxe6 {[%clk 0:01:12.6]} 34. Nxh6 {[%clk 0:04:17.2]} 34... Rd6 {[%clk 0:01:11.9]}
35. h4 {[%clk 0:04:11.1]} 35... Nc4 {[%clk 0:01:12.8]} 36. Ng4 {[%clk
0:04:01.3]} 36... Rd8 {[%clk 0:00:43.6]} 37. Nxe5 {[%clk 0:03:59.7]} 37... Nxa3
{[%clk 0:00:44.9]} 38. a7 {[%clk 0:03:24.1]} 38... Ra8 {[%clk 0:00:45.5]} 39.
Nec6 {[%clk 0:03:24.9]} 39... Nb1 {[%clk 0:00:46.3]} 40. Rxe8+ {[%clk
0:03:02.9]} 1-0

[Event "GrandPrix_30.05"]
[Site "Chess.com"]
[Date "2020.05.30"]
[Round "4"]
[White "PlayChessSimple"]
[Black "tsvet2005"]
[Result "1-0"]
[WhiteElo "2187"]
[BlackElo "2205"]
[TimeControl "600+2"]
[EndTime "9:51:00 PDT"]
[Termination "PlayChessSimple won by resignation"]

1. e4 {[%clk 0:09:55.4]} 1... c5 {[%clk 0:10:00.6]} 2. Nf3 {[%clk 0:09:54.7]}
2... d6 {[%clk 0:10:01.7]} 3. c3 {[%clk 0:09:55.8]} 3... Nf6 {[%clk 0:10:02.8]}
4. h3 {[%clk 0:09:57.1]} 4... Nc6 {[%clk 0:10:04]} 5. Bd3 {[%clk 0:09:58.2]}
5... d5 {[%clk 0:10:05.4]} 6. e5 {[%clk 0:09:59.2]} 6... Nd7 {[%clk 0:10:06.3]}
7. Bb5 {[%clk 0:10:00.3]} 7... e6 {[%clk 0:10:05.7]} 8. Bxc6 {[%clk 0:09:52.7]}
8... bxc6 {[%clk 0:10:06.3]} 9. d3 {[%clk 0:09:54.1]} 9... Be7 {[%clk
0:10:06.1]} 10. O-O {[%clk 0:09:47.4]} 10... O-O {[%clk 0:10:06.2]} 11. Bf4
{[%clk 0:09:35.7]} 11... f6 {[%clk 0:09:46]} 12. exf6 {[%clk 0:09:26.2]} 12...
Bxf6 {[%clk 0:09:47.9]} 13. Bd6 {[%clk 0:08:50.2]} 13... Re8 {[%clk 0:09:45.4]}
14. d4 {[%clk 0:08:51.1]} 14... cxd4 {[%clk 0:09:25.7]} 15. cxd4 {[%clk
0:08:51.7]} 15... e5 {[%clk 0:09:23.6]} 16. dxe5 {[%clk 0:08:28.1]} 16... Nxe5
{[%clk 0:09:25.5]} 17. Bxe5 {[%clk 0:08:27.7]} 17... Bxe5 {[%clk 0:09:22.9]} 18.
Nxe5 {[%clk 0:08:09.2]} 18... Rxe5 {[%clk 0:09:24.8]} 19. Nd2 {[%clk 0:08:09.4]}
19... Rg5 {[%clk 0:08:45]} 20. Nf3 {[%clk 0:07:41.7]} 20... Rg6 {[%clk
0:08:45.8]} 21. Ne5 {[%clk 0:07:30.9]} 21... Rg5 {[%clk 0:08:17.2]} 22. f4
{[%clk 0:07:03.6]} 22... Rg3 {[%clk 0:07:35.1]} 23. Kh2 {[%clk 0:06:16.1]} 23...
Qh4 {[%clk 0:07:07.2]} 24. Qe1 {[%clk 0:06:08.7]} 24... Rxg2+ {[%clk 0:05:37.7]}
25. Kxg2 {[%clk 0:06:07.5]} 25... Qxh3+ {[%clk 0:05:39.6]} 26. Kg1 {[%clk
0:05:52.4]} 26... Bf5 {[%clk 0:05:39.9]} 27. Rf3 {[%clk 0:04:45]} 27... Qh5
{[%clk 0:05:39.2]} 28. Qc3 {[%clk 0:04:14]} 28... Rf8 {[%clk 0:05:14.1]} 29.
Qxc6 {[%clk 0:03:35.8]} 29... Kh8 {[%clk 0:04:44.1]} 30. Qxd5 {[%clk 0:03:30.3]}
30... h6 {[%clk 0:04:29.5]} 31. Rg3 {[%clk 0:03:15.2]} 31... Qh4 {[%clk
0:04:25.9]} 32. Rg2 {[%clk 0:00:59.9]} 32... Qxf4 {[%clk 0:04:13.5]} 33. Rf1
{[%clk 0:00:55.9]} 33... Qe3+ {[%clk 0:04:13.8]} 34. Rff2 {[%clk 0:00:19.3]}
34... Be4 {[%clk 0:03:54.3]} 35. Qxe4 {[%clk 0:00:20.3]} 35... Qxe4 {[%clk
0:03:49.3]} 36. Ng6+ {[%clk 0:00:19.3]} 36... Kh7 {[%clk 0:03:44]} 37. Rxf8
{[%clk 0:00:20.1]} 37... Qe1+ {[%clk 0:03:32.5]} 38. Kh2 {[%clk 0:00:20.7]} 1-0